[Event "EYCC Open-U10 2019"]
[Site "Bratislava"]
[Date "2019.08.10"]
[Round "9.12"]
[White "Yonal, Timur"]
[Black "Averin, Nikolay"]
[Result "1/2-1/2"]
[ECO "C14"]
[WhiteElo "1512"]
[BlackElo "1840"]
[Annotator "NA RC"]
[PlyCount "104"]
[EventDate "2019.08.02"]
[EventType "swiss"]
[EventCountry "SVK"]
[SourceTitle "playchess.com"]
[Source "ChessBase"]
[SourceQuality "1"]
[TimeControl "40/5400+30:1800+30"]

1. e4 {[%emt 0:00:00]} e6 {[%emt 0:00:00]} 2. d4 {[%emt 0:00:00]} d5 {[%emt 0:00:00]} 3. Nc3 {[%emt 0:00:00]} Nf6 {[%emt 0:00:00]} 4. Bg5 {[%emt 0:00:00]} Be7 {[%emt 0:00:00]} 5. e5 {[%emt 0:00:00]} Nfd7 {[%emt 0:00:00]} 6. Bxe7 {[%emt 0:00:00]} Qxe7 {[%emt 0:00:02]} 7. f4 {[%emt 0:00:00]} a6 {[%emt 0:00:16]} 8. Qg4 {[%emt 0:00:22]} f5 {[%emt 0:17:57]} 9. exf6 {[%emt 0:00:09]} Nxf6 {[%emt 0:00:47]} 10. Qh4 {[%emt 0:00:10]} c5 {[%emt 0:08:59]} 11. dxc5 {[%emt 0:13:01]} Qxc5 {[%emt 0:02:32]} 12. O-O-O {[%emt 0:02:09]} Nc6 {[%emt 0:01:28]} 13. Bd3 {[%emt 0:13:02]} Bd7 {[%emt 0:22:22]} 14. Nf3 {[%emt 0:09:08]} O-O-O {[%emt 0:05:49]} 15. Rhe1 {[%emt 0:00:44]} h6 {[%emt 0:05:24]} 16. Ne5 {[%emt 0:02:08]} Nxe5 {[%emt 0:01:23]} 17. Rxe5 {[%emt 0:00:34]} Qd6 {[%emt 0:07:48]} 18. Qg3 {[%emt 0:01:40]} g5 {[%emt 0:03:37]} 19. fxg5 {[%emt 0:03:51]} Nh5 {[%emt 0:16:14]} 20. Qe1 {[%emt 0:00:42]} hxg5 {[%emt 0:00:16]} 21. g3 {[%emt 0:09:44]} g4 {[%emt 0:04:54]} 22. Bg6 {[%emt 0:02:10]} Ng7 {[%emt 0:00:07]} 23. Rg5 {[%emt 0:19:21]} Rxh2 {[%emt 0:00:54]} 24. Nxd5 {[%emt 0:03:47]} exd5 {[%emt 0:00:28]} 25. Qc3+ {[%emt 0:00:15]} Bc6 {[%emt 0:00:28]} 26. Qxg7 {[%emt 0:00:13]} Qxg3 {[%emt 0:00:11]} 27. Bf5+ {[%emt 0:00:21]} Kb8 {[%emt 0:00:04]} 28. Rxg4 {[%emt 0:01:23]} Qe3+ {[%emt 0:00:07]} 29. Kb1 {[%emt 0:00:16]} Rd2 {[%emt 0:00:56]} 30. Rgg1 {[%emt 0:05:23]} Rxd1+ {[%emt 0:00:33]} 31. Rxd1 {[%emt 0:00:04]} Ka8 {[%emt 0:00:39]} 32. Rg1 {[%emt 0:01:54]} Re8 {[%emt 0:00:26]} 33. a3 {[%emt 0:00:58]} Ka7 {[%emt 0:00:40]} 34. Bd3 {[%emt 0:01:48]} Qe5 {[%emt 0:00:34]} 35. Qf7 {[%emt 0:01:11]} Qe6 36. Qg7 {[%emt 0:01:27]} Qe5 {[%emt 0:00:35]} 37. Qg4 {[%emt 0:00:15]} Rf8 {[%emt 0:00:43]} 38. Qb4 {[%emt 0:01:55]} Rc8 {[%emt 0:00:34]} 39. Re1 {[%emt 0:01:15]} Qc7 {[%emt 0:00:33]} 40. Re7 {[%emt 0:00:00]} Qb6 {[%emt 0:00:00]} 41. Qg4 {[%emt 0:02:49]} Rd8 {[%emt 0:01:16]} 42. Bf5 {[%emt 0:01:25]} Qb5 {[%emt 0:07:06]} 43. Bd3 {[%emt 0:01:06]} Qb6 {[%emt 0:00:45]} 44. Qg5 {[%emt 0:00:26]} Rf8 {[%emt 0:01:29]} 45. Re5 {[%emt 0:03:39]} Qc7 {[%emt 0:03:11]} 46. Re6 {[%emt 0:07:17]} Rd8 {[%emt 0:03:46]} 47. Qh4 {[%emt 0:04:39]} Rc8 {[%emt 0:03:30]} 48. Bf5 {[%emt 0:01:51]} Rf8 {[%emt 0:01:15]} 49. Bd3 {[%emt 0:00:13]} Rc8 {[%emt 0:01:06]} 50. Qg5 {[%emt 0:01:21]} Rf8 {[%emt 0:00:26]} 51. Qe3+ {[%emt 0:00:47]} Qb6 {[%emt 0:00:13]} 52. Qg5 Qd8 1/2-1/2

[Event "EYCC Open-U10 2019"]
[Site "Bratislava"]
[Date "2019.08.10"]
[Round "9.13"]
[White "Tykheev, Aldar"]
[Black "Tabuenca Mendataurigoitia, Dani"]
[Result "1-0"]
[ECO "B01"]
[WhiteElo "1434"]
[BlackElo "1765"]
[Annotator "NA RC"]
[PlyCount "57"]
[EventDate "2019.08.02"]
[EventType "swiss"]
[EventCountry "SVK"]
[SourceTitle "playchess.com"]
[Source "ChessBase"]
[SourceQuality "1"]
[TimeControl "40/5400+30:1800+30"]

1. e4 {[%emt 0:00:48]} d5 {[%emt 0:00:00]} 2. exd5 {[%emt 0:00:05]} Qxd5 {[%emt 0:00:12]} 3. Nc3 {[%emt 0:00:07]} Qd6 {[%emt 0:00:39]} 4. d4 {[%emt 0:00:40]} Nf6 {[%emt 0:00:44]} 5. Nf3 {[%emt 0:01:10]} c6 {[%emt 0:00:40]} 6. Be2 {[%emt 0:03:51]} Bf5 {[%emt 0:02:41]} 7. O-O {[%emt 0:01:20]} e6 {[%emt 0:01:53]} 8. Ne5 {[%emt 0:01:11]} Qc7 {[%emt 0:03:36]} 9. Bf4 {[%emt 0:27:29]} Bd6 {[%emt 0:03:33]} 10. g4 {[%emt 0:04:25]} Bg6 {[%emt 0:06:08]} 11. Bg3 {[%emt 0:10:34]} Nd5 {[%emt 0:08:26]} 12. Nxd5 {[%emt 0:06:33]} exd5 {[%emt 0:01:10]} 13. f4 {[%emt 0:02:35]} f6 {[%emt 0:01:54]} 14. Nxg6 {[%emt 0:05:05]} hxg6 {[%emt 0:00:09]} 15. Bd3 {[%emt 0:00:27]} Kf7 {[%emt 0:00:23]} 16. c4 {[%emt 0:05:29]} g5 {[%emt 0:03:40]} 17. Qc2 {[%emt 0:05:19]} gxf4 {[%emt 0:02:00]} 18. Bg6+ {[%emt 0:00:08]} Kg8 {[%emt 0:00:43]} 19. Qf5 {[%emt 0:01:13]} Na6 {[%emt 0:01:54]} 20. Rae1 {[%emt 0:01:48]} Kf8 {[%emt 0:02:19]} 21. Bxf4 {[%emt 0:03:23]} Bxf4 {[%emt 0:01:42]} 22. Rxf4 {[%emt 0:00:24]} Rh6 {[%emt 0:00:50]} 23. Re5 {[%emt 0:06:12]} Qd6 {[%emt 0:11:06]} 24. g5 {[%emt 0:00:47]} Rh8 {[%emt 0:00:43]} 25. Re6 {[%emt 0:00:23]} Qb4 {[%emt 0:01:51]} 26. gxf6 {[%emt 0:00:36]} Qd2 {[%emt 0:00:51]} 27. fxg7+ {[%emt 0:00:21]} Kxg7 {[%emt 0:00:09]} 28. Re7+ {[%emt 0:00:16]} Kh6 {[%emt 0:00:15]} 29. Rh4# {[%emt 0:00:08]} 1-0

[Event "EYCC Open-U10 2019"]
[Site "Bratislava"]
[Date "2019.08.10"]
[Round "9.14"]
[White "Gordeev, Denis"]
[Black "Salinas Tomas, Daniel"]
[Result "1-0"]
[ECO "B20"]
[WhiteElo "1467"]
[BlackElo "2001"]
[Annotator "NA RC"]
[PlyCount "45"]
[EventDate "2019.08.02"]
[EventType "swiss"]
[EventCountry "SVK"]
[SourceTitle "playchess.com"]
[Source "ChessBase"]
[SourceQuality "1"]
[TimeControl "40/5400+30:1800+30"]

1. e4 c5 2. b4 cxb4 3. a3 d5 4. exd5 Qxd5 5. Nf3 Bg4 6. axb4 Bxf3 7. Qxf3 Qxf3 8. gxf3 e6 9. b5 Nd7 10. Bb2 Ngf6 11. Rg1 e5 12. Bh3 Rg8 13. Nc3 Bd6 14. Ne4 Nxe4 15. fxe4 Nf6 16. f4 Nxe4 17. fxe5 Be7 18. Bg2 Bh4+ 19. Ke2 Nc5 20. d4 Ne6 21. Bxb7 Rb8 22. Bc6+ Kd8 23. Rxa7 1-0

[Event "EYCC Open-U10 2019"]
[Site "Bratislava"]
[Date "2019.08.10"]
[Round "9.15"]
[White "Deveci, Huseyin Said"]
[Black "Dimitrov, Martin"]
[Result "1-0"]
[ECO "B22"]
[WhiteElo "1558"]
[BlackElo "1473"]
[Annotator "NA RC"]
[PlyCount "73"]
[EventDate "2019.08.02"]
[EventType "swiss"]
[EventCountry "SVK"]
[SourceTitle "playchess.com"]
[Source "ChessBase"]
[SourceQuality "1"]
[TimeControl "40/5400+30:1800+30"]

1. e4 c5 2. c3 g6 3. d4 cxd4 4. cxd4 d5 5. e5 Nc6 6. Nc3 Nh6 7. h3 Bg7 8. g4 O-O 9. f4 f6 10. Bg2 fxe5 11. fxe5 e6 12. Nf3 Rxf3 13. Bxf3 Qh4+ 14. Kf1 Qg3 15. Be3 Bd7 16. Bf2 Qf4 17. Kg2 Rf8 18. Rf1 Nxe5 19. Bg3 Qxf3+ 20. Rxf3 Nxf3 21. Bf2 Bc6 22. Qe2 e5 23. Nb5 b6 24. Rc1 Ba8 25. Nc7 Bb7 26. Ne6 Rf7 27. Nd8 Rd7 28. Nxb7 e4 29. Rc8+ Kf7 30. Qb5 Re7 31. Qxd5+ Re6 32. Nd8+ Kf8 33. Nxe6+ Ke7 34. Nxg7 Ne1+ 35. Bxe1 Nxg4 36. Qd8+ Kf7 37. Qf8# 1-0

[Event "EYCC Open-U10 2019"]
[Site "Bratislava"]
[Date "2019.08.10"]
[Round "9.16"]
[White "kiladze, Luka"]
[Black "Mehtizada, Murad"]
[Result "1/2-1/2"]
[ECO "D26"]
[WhiteElo "1683"]
[BlackElo "1516"]
[Annotator "NA RC"]
[PlyCount "78"]
[EventDate "2019.08.02"]
[EventType "swiss"]
[EventCountry "SVK"]
[SourceTitle "playchess.com"]
[Source "ChessBase"]
[SourceQuality "1"]
[TimeControl "40/5400+30:1800+30"]

1. d4 {[%emt 0:00:00]} d5 {[%emt 0:00:00]} 2. c4 {[%emt 0:00:00]} dxc4 {[%emt 0:00:00]} 3. e3 {[%emt 0:00:00]} Nf6 {[%emt 0:00:00]} 4. Bxc4 {[%emt 0:00:07]} e6 {[%emt 0:00:00]} 5. Nf3 {[%emt 0:00:16]} c5 {[%emt 0:00:05]} 6. O-O {[%emt 0:01:26]} Be7 {[%emt 0:00:31]} 7. Nc3 {[%emt 0:02:58]} O-O {[%emt 0:00:33]} 8. Qe2 {[%emt 0:03:24]} a6 {[%emt 0:01:49]} 9. a4 {[%emt 0:03:30]} Nc6 {[%emt 0:01:12]} 10. Rd1 {[%emt 0:01:10]} Qc7 {[%emt 0:01:44]} 11. Bd2 {[%emt 0:01:31]} Rd8 {[%emt 0:01:00]} 12. dxc5 {[%emt 0:00:58]} Bxc5 {[%emt 0:03:30]} 13. Rac1 {[%emt 0:04:49]} b6 {[%emt 0:05:01]} 14. h3 {[%emt 0:06:43]} Bb7 {[%emt 0:00:52]} 15. Na2 {[%emt 0:05:11]} Qe7 16. Nc3 {[%emt 0:05:34]} Nb4 {[%emt 0:06:57]} 17. e4 {[%emt 0:03:36]} h6 {[%emt 0:13:53]} 18. Be3 {[%emt 0:02:27]} Rxd1+ {[%emt 0:12:25]} 19. Rxd1 {[%emt 0:03:27]} Rc8 {[%emt 0:00:21]} 20. b3 {[%emt 0:05:13]} Qc7 {[%emt 0:12:27]} 21. Bxc5 {[%emt 0:05:56]} Qxc5 {[%emt 0:01:48]} 22. e5 {[%emt 0:06:28]} Bxf3 {[%emt 0:01:54]} 23. Qxf3 {[%emt 0:00:57]} Qxe5 {[%emt 0:00:16]} 24. Ne2 {[%emt 0:01:14]} b5 {[%emt 0:08:35]} 25. axb5 {[%emt 0:04:14]} axb5 {[%emt 0:00:00]} 26. Bd3 {[%emt 0:01:00]} Nxd3 27. Qxd3 {[%emt 0:01:05]} b4 {[%emt 0:01:27]} 28. Qa6 {[%emt 0:03:20]} Rc2 {[%emt 0:04:19]} 29. Qa8+ {[%emt 0:03:05]} Kh7 {[%emt 0:00:06]} 30. Nd4 {[%emt 0:00:27]} Rd2 {[%emt 0:02:59]} 31. Rxd2 {[%emt 0:02:23]} Qe1+ {[%emt 0:00:04]} 32. Kh2 {[%emt 0:00:55]} Qxd2 {[%emt 0:00:01]} 33. Nf3 {[%emt 0:02:10]} Qxf2 {[%emt 0:04:46]} 34. Qf8 {[%emt 0:02:48]} Qb6 {[%emt 0:00:54]} 35. Qxf7 {[%emt 0:01:02]} Qd6+ {[%emt 0:00:06]} 36. Kg1 {[%emt 0:01:09]} Qd1+ {[%emt 0:00:29]} 37. Kh2 {[%emt 0:00:12]} Qxb3 {[%emt 0:00:49]} 38. Nd4 {[%emt 0:01:38]} Qd5 {[%emt 0:02:24]} 39. Nxe6 Qe5+ {Nf8+ Kh8+} 1/2-1/2

[Event "EYCC Open-U10 2019"]
[Site "Bratislava"]
[Date "2019.08.10"]
[Round "9.17"]
[White "Wielgus, Wojciech"]
[Black "Bartodziej, Bartosz"]
[Result "1-0"]
[ECO "B31"]
[WhiteElo "1655"]
[BlackElo "1526"]
[Annotator "NA RC"]
[PlyCount "120"]
[EventDate "2019.08.02"]
[EventType "swiss"]
[EventCountry "SVK"]
[SourceTitle "playchess.com"]
[Source "ChessBase"]
[SourceQuality "1"]
[TimeControl "40/5400+30:1800+30"]

1. e4 {[%emt 0:00:37]} c5 {[%emt 0:00:00]} 2. Nf3 {[%emt 0:01:16]} Nc6 {[%emt 0:00:45]} 3. Bb5 {[%emt 0:01:29]} g6 {[%emt 0:01:28]} 4. Bxc6 {[%emt 0:03:56]} bxc6 {[%emt 0:00:33]} 5. O-O {[%emt 0:06:52]} Bg7 {[%emt 0:01:55]} 6. Re1 {[%emt 0:04:19]} Nh6 {[%emt 0:02:35]} 7. c3 {[%emt 0:19:03]} O-O {[%emt 0:02:40]} 8. d4 {[%emt 0:02:19]} cxd4 {[%emt 0:01:40]} 9. cxd4 {[%emt 0:00:13]} d5 {[%emt 0:01:18]} 10. e5 {[%emt 0:05:50]} f6 {[%emt 0:03:31]} 11. exf6 {[%emt 0:13:50]} exf6 {[%emt 0:03:00]} 12. h3 {[%emt 0:02:41]} Re8 {[%emt 0:09:12]} 13. Nbd2 {[%emt 0:04:15]} Nf5 {[%emt 0:05:58]} 14. Nb3 {[%emt 0:03:33]} Bf8 {[%emt 0:06:40]} 15. Bf4 {[%emt 0:13:18]} Bd7 {[%emt 0:12:45]} 16. Rxe8 {[%emt 0:05:19]} Qxe8 {[%emt 0:01:22]} 17. Qd2 {[%emt 0:05:33]} Nd6 {[%emt 0:10:18]} 18. Bxd6 {[%emt 0:01:24]} Bxd6 {[%emt 0:00:14]} 19. Re1 {[%emt 0:01:34]} Qb8 {[%emt 0:07:06]} 20. Nc5 {[%emt 0:00:54]} Bxc5 {[%emt 0:01:51]} 21. dxc5 {[%emt 0:00:10]} Qc7 {[%emt 0:04:57]} 22. Re7 {[%emt 0:00:59]} Re8 {[%emt 0:00:57]} 23. Rxe8+ {[%emt 0:00:52]} Bxe8 {[%emt 0:00:07]} 24. b4 {[%emt 0:01:08]} a6 {[%emt 0:01:23]} 25. Qd4 {[%emt 0:00:28]} Kf7 {[%emt 0:01:41]} 26. Qd3 {[%emt 0:00:29]} Qb7 {[%emt 0:01:26]} 27. a3 {[%emt 0:00:20]} Qb5 {[%emt 0:01:30]} 28. Qe3 {[%emt 0:00:42]} Qb8 {[%emt 0:01:17]} 29. Qe2 {[%emt 0:00:26]} Qb5 {[%emt 0:00:48]} 30. Qe3 {[%emt 0:00:32]} Qb8 {[%emt 0:00:38]} 31. Qh6 {[%emt 0:00:34]} Kg8 {[%emt 0:00:29]} 32. Qh4 {[%emt 0:00:29]} Kg7 {[%emt 0:00:33]} 33. Qd4 {[%emt 0:00:26]} Bd7 {[%emt 0:01:44]} 34. Qd3 {[%emt 0:00:18]} Qb7 {[%emt 0:02:11]} 35. Qe3 {[%emt 0:00:25]} Kf7 {[%emt 0:03:08]} 36. Qh6 {[%emt 0:00:37]} Kg8 {[%emt 0:00:25]} 37. Qf4 {[%emt 0:00:07]} Kg7 {[%emt 0:00:49]} 38. Qd6 {[%emt 0:00:11]} Kf7 {[%emt 0:01:43]} 39. Nd4 {[%emt 0:00:32]} Qc8 {[%emt 0:03:17]} 40. f4 {[%emt 0:00:00]} h5 {[%emt 0:00:00]} 41. Kf2 {[%emt 0:18:52]} Qe8 {[%emt 0:06:13]} 42. Qc7 {[%emt 0:06:06]} Kg8 {[%emt 0:04:50]} 43. Qb7 {[%emt 0:02:36]} Qe4 {[%emt 0:14:39]} 44. Ne2 {[%emt 0:01:41]} Qf5 {[%emt 0:06:11]} 45. Qxa6 {[%emt 0:00:54]} g5 {[%emt 0:00:29]} 46. b5 {[%emt 0:03:33]} cxb5 {[%emt 0:00:45]} 47. c6 {[%emt 0:00:05]} Bc8 {[%emt 0:00:28]} 48. Qxb5 {[%emt 0:00:20]} gxf4 {[%emt 0:01:13]} 49. c7 {[%emt 0:01:16]} Kg7 {[%emt 0:02:22]} 50. a4 {[%emt 0:01:00]} f3 {[%emt 0:00:53]} 51. gxf3 {[%emt 0:00:32]} Qxh3 {[%emt 0:00:09]} 52. Qc5 {[%emt 0:00:30]} Qh4+ {[%emt 0:00:52]} 53. Ke3 {[%emt 0:00:31]} Qg5+ {[%emt 0:00:53]} 54. Kf2 {[%emt 0:00:30]} Qh4+ {[%emt 0:00:19]} 55. Ke3 {[%emt 0:00:06]} Qg5+ {[%emt 0:00:10]} 56. f4 {[%emt 0:00:50]} Qf5 {[%emt 0:01:00]} 57. Qe7+ {[%emt 0:00:22]} Kg8 {[%emt 0:00:32]} 58. a5 {[%emt 0:00:40]} Qh3+ 59. Kd4 {[%emt 0:00:30]} Bf5 60. Kxd5 {[%emt 0:00:30]} Qb3+ 1-0

[Event "EYCC Open-U10 2019"]
[Site "Bratislava"]
[Date "2019.08.10"]
[Round "9.19"]
[White "Medhus, Vitus Bondo"]
[Black "Dotzer, Lukas"]
[Result "0-1"]
[ECO "C44"]
[WhiteElo "1704"]
[BlackElo "1070"]
[Annotator "NA RC"]
[PlyCount "64"]
[EventDate "2019.08.02"]
[EventType "swiss"]
[EventCountry "SVK"]
[SourceTitle "playchess.com"]
[Source "ChessBase"]
[SourceQuality "1"]
[TimeControl "40/5400+30:1800+30"]

1. e4 {[%emt 0:00:00]} e5 {[%emt 0:00:00]} 2. Nf3 {[%emt 0:00:00]} Nc6 {[%emt 0:00:00]} 3. d4 {[%emt 0:00:09]} exd4 {[%emt 0:00:00]} 4. Bc4 {[%emt 0:00:17]} Bc5 {[%emt 0:00:21]} 5. c3 {[%emt 0:01:16]} Nf6 {[%emt 0:00:12]} 6. O-O {[%emt 0:05:54]} d5 {[%emt 0:10:10]} 7. exd5 {[%emt 0:01:42]} Nxd5 {[%emt 0:00:39]} 8. cxd4 {[%emt 0:06:52]} Bb6 {[%emt 0:00:56]} 9. Re1+ {[%emt 0:02:47]} Be6 {[%emt 0:04:44]} 10. Bxd5 {[%emt 0:01:05]} Qxd5 {[%emt 0:00:50]} 11. Nc3 {[%emt 0:00:28]} Qh5 {[%emt 0:01:41]} 12. d5 {[%emt 0:00:34]} O-O-O {[%emt 0:00:17]} 13. Ng5 {[%emt 0:16:47]} Bg4 {[%emt 0:13:56]} 14. Qa4 {[%emt 0:02:32]} Rhe8 {[%emt 0:06:56]} 15. Rxe8 {[%emt 0:04:19]} Rxe8 {[%emt 0:01:47]} 16. Bf4 {[%emt 0:01:20]} f6 {[%emt 0:05:04]} 17. Nge4 {[%emt 0:03:55]} Ne5 {[%emt 0:06:24]} 18. Bxe5 {[%emt 0:05:51]} Qxe5 {[%emt 0:03:29]} 19. Re1 {[%emt 0:02:13]} Kd8 {[%emt 0:05:32]} 20. h3 {[%emt 0:04:44]} Bd7 {[%emt 0:06:04]} 21. Qb4 {[%emt 0:03:09]} f5 {[%emt 0:02:00]} 22. a4 {[%emt 0:00:07]} a5 {[%emt 0:01:28]} 23. Qc4 {[%emt 0:02:03]} fxe4 {[%emt 0:01:41]} 24. Nxe4 {[%emt 0:01:10]} Qf4 {[%emt 0:01:10]} 25. d6 {[%emt 0:01:57]} cxd6 {[%emt 0:02:43]} 26. g3 {[%emt 0:02:30]} Qf3 {[%emt 0:02:39]} 27. Kh2 {[%emt 0:02:48]} Rxe4 28. Qg8+ {[%emt 0:02:00]} Kc7 {[%emt 0:03:13]} 29. Rc1+ {[%emt 0:01:15]} Bc5 {[%emt 0:00:14]} 30. Qa8 {[%emt 0:03:27]} Qxf2+ {[%emt 0:00:13]} 31. Kh1 {[%emt 0:00:07]} Qf3+ {[%emt 0:00:12]} 32. Kh2 {[%emt 0:00:15]} Re2# {[%emt 0:00:07]} 0-1

[Event "EYCC Open-U10 2019"]
[Site "Bratislava"]
[Date "2019.08.10"]
[Round "9.20"]
[White "Jaakkola, Niklas"]
[Black "Shearsby, Jude"]
[Result "1-0"]
[ECO "B00"]
[WhiteElo "1587"]
[BlackElo "1486"]
[Annotator "NA RC"]
[PlyCount "81"]
[EventDate "2019.08.02"]
[EventType "swiss"]
[EventCountry "SVK"]
[SourceTitle "playchess.com"]
[Source "ChessBase"]
[SourceQuality "1"]
[TimeControl "40/5400+30:1800+30"]

1. e4 {[%emt 0:00:00]} Nc6 {[%emt 0:00:00]} 2. Nf3 {[%emt 0:00:00]} d6 {[%emt 0:00:00]} 3. d4 {[%emt 0:00:02]} Nf6 {[%emt 0:00:00]} 4. Nc3 {[%emt 0:00:31]} g6 {[%emt 0:00:00]} 5. d5 {[%emt 0:00:44]} Nb8 {[%emt 0:00:11]} 6. h3 {[%emt 0:00:55]} Bg7 {[%emt 0:00:06]} 7. Bc4 {[%emt 0:00:45]} O-O {[%emt 0:00:11]} 8. O-O {[%emt 0:00:17]} c6 {[%emt 0:00:21]} 9. a4 {[%emt 0:01:42]} cxd5 {[%emt 0:00:33]} 10. exd5 {[%emt 0:00:10]} e5 {[%emt 0:00:11]} 11. dxe6 {[%emt 0:13:17]} fxe6 {[%emt 0:00:10]} 12. Re1 {[%emt 0:15:28]} d5 {[%emt 0:02:10]} 13. Bb3 {[%emt 0:02:29]} Nc6 {[%emt 0:02:40]} 14. Bg5 {[%emt 0:05:55]} Bd7 {[%emt 0:02:57]} 15. Qd2 {[%emt 0:08:00]} Na5 {[%emt 0:03:38]} 16. Ba2 {[%emt 0:02:56]} Rc8 {[%emt 0:00:53]} 17. Rad1 {[%emt 0:01:47]} Nc4 {[%emt 0:02:06]} 18. Bxc4 {[%emt 0:04:00]} Rxc4 {[%emt 0:00:25]} 19. Bxf6 {[%emt 0:12:33]} Qxf6 {[%emt 0:02:56]} 20. Nxd5 {[%emt 0:04:47]} exd5 {[%emt 0:03:09]} 21. Qxd5+ {[%emt 0:00:26]} Qf7 {[%emt 0:00:17]} 22. Qxd7 {[%emt 0:00:07]} Rc7 {[%emt 0:02:22]} 23. Qxf7+ {[%emt 0:00:41]} Rcxf7 {[%emt 0:00:20]} 24. b3 {[%emt 0:01:24]} Rc7 {[%emt 0:04:25]} 25. c4 {[%emt 0:00:53]} h6 {[%emt 0:00:42]} 26. Nd4 {[%emt 0:01:10]} Bxd4 {[%emt 0:01:10]} 27. Rxd4 {[%emt 0:00:06]} Kg7 {[%emt 0:01:11]} 28. Re6 {[%emt 0:02:19]} Rcf7 {[%emt 0:02:43]} 29. Rdd6 {[%emt 0:01:29]} Rf6 {[%emt 0:00:49]} 30. Rxf6 {[%emt 0:00:11]} Rxf6 {[%emt 0:00:05]} 31. Rd7+ {[%emt 0:00:04]} Rf7 {[%emt 0:00:08]} 32. Rxf7+ {[%emt 0:00:28]} Kxf7 {[%emt 0:00:07]} 33. f4 {[%emt 0:00:33]} Ke6 {[%emt 0:00:08]} 34. Kf2 {[%emt 0:00:06]} Kf5 {[%emt 0:01:00]} 35. Kf3 {[%emt 0:00:06]} a5 {[%emt 0:00:09]} 36. g4+ {[%emt 0:00:05]} Ke6 {[%emt 0:00:11]} 37. Ke4 {[%emt 0:00:10]} b6 {[%emt 0:00:04]} 38. f5+ {[%emt 0:00:16]} gxf5+ {[%emt 0:00:06]} 39. gxf5+ {[%emt 0:00:09]} Kf6 {[%emt 0:00:10]} 40. h4 {[%emt 0:00:00]} h5 {[%emt 0:00:00]} 41. Kf4 {[%emt 0:00:15]} 1-0

[Event "EYCC Open-U10 2019"]
[Site "Bratislava"]
[Date "2019.08.10"]
[Round "9.21"]
[White "Sommer, Justus"]
[Black "Misiuk, Martynas"]
[Result "1-0"]
[ECO "B27"]
[WhiteElo "1671"]
[BlackElo "1304"]
[Annotator "NA RC"]
[PlyCount "53"]
[EventDate "2019.08.02"]
[EventType "swiss"]
[EventCountry "SVK"]
[SourceTitle "playchess.com"]
[Source "ChessBase"]
[SourceQuality "1"]
[TimeControl "40/5400+30:1800+30"]

1. e4 {[%emt 0:00:00]} c5 {[%emt 0:00:00]} 2. Nf3 {[%emt 0:00:00]} g6 {[%emt 0:00:00]} 3. d4 {[%emt 0:00:04]} cxd4 {[%emt 0:00:12]} 4. Qxd4 {[%emt 0:00:12]} Nf6 {[%emt 0:00:29]} 5. Nc3 {[%emt 0:00:28]} Nc6 {[%emt 0:00:31]} 6. Qa4 {[%emt 0:00:41]} d6 {[%emt 0:00:45]} 7. e5 {[%emt 0:01:03]} dxe5 {[%emt 0:00:22]} 8. Nxe5 {[%emt 0:01:03]} Bd7 {[%emt 0:00:29]} 9. Nxd7 {[%emt 0:00:31]} Nxd7 {[%emt 0:00:37]} 10. Bb5 {[%emt 0:04:33]} Bg7 {[%emt 0:00:22]} 11. Bxc6 {[%emt 0:01:49]} bxc6 {[%emt 0:00:11]} 12. Bd2 {[%emt 0:01:40]} Rb8 {[%emt 0:01:21]} 13. b3 {[%emt 0:01:53]} O-O {[%emt 0:01:58]} 14. Rd1 {[%emt 0:02:07]} Qc7 {[%emt 0:01:28]} 15. O-O {[%emt 0:04:03]} Rfd8 {[%emt 0:01:49]} 16. Rfe1 {[%emt 0:09:14]} Nb6 {[%emt 0:07:28]} 17. Qf4 {[%emt 0:07:24]} Qb7 {[%emt 0:02:08]} 18. Ne4 {[%emt 0:09:29]} Rd5 {[%emt 0:05:38]} 19. c4 {[%emt 0:04:24]} Rf5 {[%emt 0:01:07]} 20. Qe3 {[%emt 0:03:26]} Rd8 {[%emt 0:01:35]} 21. Bc3 {[%emt 0:03:35]} Qc7 {[%emt 0:01:49]} 22. Rxd8+ {[%emt 0:10:06]} Qxd8 {[%emt 0:00:09]} 23. Bxg7 {[%emt 0:00:15]} Kxg7 {[%emt 0:00:09]} 24. Ng3 {[%emt 0:01:09]} Rf6 {[%emt 0:02:45]} 25. Qxe7 {[%emt 0:01:58]} Qd2 {[%emt 0:00:39]} 26. Qxf6+ {[%emt 0:00:20]} Kxf6 27. Ne4+ 1-0

[Event "EYCC Open-U10 2019"]
[Site "Bratislava"]
[Date "2019.08.10"]
[Round "9.22"]
[White "Sauer, Tim"]
[Black "Povshednyi, Ivan"]
[Result "0-1"]
[ECO "A21"]
[WhiteElo "1635"]
[BlackElo "1872"]
[Annotator "NA RC"]
[PlyCount "84"]
[EventDate "2019.08.02"]
[EventType "swiss"]
[EventCountry "SVK"]
[SourceTitle "playchess.com"]
[Source "ChessBase"]
[SourceQuality "1"]
[TimeControl "40/5400+30:1800+30"]

1. c4 {[%emt 0:00:00]} e5 {[%emt 0:00:00]} 2. Nc3 {[%emt 0:00:00]} c5 {[%emt 0:00:20]} 3. g3 {[%emt 0:00:00]} Nc6 {[%emt 0:00:18]} 4. Bg2 {[%emt 0:00:00]} Nge7 {[%emt 0:00:12]} 5. e3 {[%emt 0:00:35]} g6 {[%emt 0:00:21]} 6. Nge2 {[%emt 0:00:24]} Bg7 {[%emt 0:00:19]} 7. O-O {[%emt 0:00:36]} O-O {[%emt 0:00:11]} 8. b3 {[%emt 0:01:01]} d6 {[%emt 0:00:39]} 9. Bb2 {[%emt 0:00:05]} a6 {[%emt 0:01:24]} 10. Nd5 {[%emt 0:01:13]} Rb8 {[%emt 0:04:20]} 11. d4 {[%emt 0:05:52]} exd4 {[%emt 0:13:38]} 12. exd4 {[%emt 0:02:25]} Bg4 {[%emt 0:00:46]} 13. f3 {[%emt 0:08:03]} Be6 {[%emt 0:02:18]} 14. Nxe7+ {[%emt 0:00:55]} Nxe7 {[%emt 0:00:59]} 15. Nf4 {[%emt 0:05:29]} Nf5 {[%emt 0:04:37]} 16. Nxe6 {[%emt 0:04:19]} fxe6 {[%emt 0:04:47]} 17. Re1 {[%emt 0:05:22]} Bxd4+ {[%emt 0:02:10]} 18. Bxd4 {[%emt 0:00:19]} Nxd4 {[%emt 0:00:01]} 19. f4 {[%emt 0:00:37]} b5 {[%emt 0:01:34]} 20. cxb5 {[%emt 0:02:20]} axb5 {[%emt 0:02:25]} 21. b4 {[%emt 0:05:54]} Qb6 {[%emt 0:01:51]} 22. Kh1 {[%emt 0:01:28]} Rbe8 {[%emt 0:08:49]} 23. bxc5 {[%emt 0:00:48]} dxc5 {[%emt 0:00:24]} 24. Re5 {[%emt 0:00:38]} c4 {[%emt 0:01:18]} 25. Rc1 Rc8 {[%emt 0:13:02]} 26. h4 {[%emt 0:09:00]} Rf5 {[%emt 0:08:08]} 27. h5 {[%emt 0:01:45]} Rxe5 {[%emt 0:00:36]} 28. fxe5 {[%emt 0:00:12]} Nf5 {[%emt 0:01:53]} 29. hxg6 {[%emt 0:04:26]} hxg6 {[%emt 0:01:00]} 30. Qg4 {[%emt 0:01:53]} Kg7 {[%emt 0:01:27]} 31. Rd1 {[%emt 0:06:22]} Rd8 {[%emt 0:03:32]} 32. Rxd8 {[%emt 0:01:19]} Qxd8 {[%emt 0:00:01]} 33. Qf4 {[%emt 0:01:09]} Qd4 {[%emt 0:00:59]} 34. Qf3 {[%emt 0:00:32]} Qxe5 {[%emt 0:01:15]} 35. Qb7+ {[%emt 0:00:35]} Kh6 {[%emt 0:01:18]} 36. g4 {[%emt 0:01:59]} Ne3 {[%emt 0:02:29]} 37. Qf3 {[%emt 0:00:58]} Nxg2 {[%emt 0:00:33]} 38. Qxg2 {[%emt 0:00:00]} Qd5 {[%emt 0:00:00]} 39. g5+ {[%emt 0:00:00]} Kh5 {[%emt 0:00:00]} 40. Qxd5 {[%emt 0:00:00]} exd5 {[%emt 0:00:00]} 41. Kg2 {[%emt 0:00:37]} c3 {[%emt 0:00:30]} 42. Kf3 {[%emt 0:00:25]} c2 {[%emt 0:00:12]} 0-1